Cogmind - Beta 12 @@@ ROGUE MODE // 2024.01.13 @ 20:27:32 Player: Kasaris Result: Destroyed by L-31 Rogue with Katana Performance ------------- Evolutions (2) 1000 Regions Visited (5) 1000 Robots Destroyed (46) 230 Value Destroyed (1710) 1710 Prototype IDs (1) 20 Alien Tech Used (0) 0 Bonus (35) 35 TOTAL SCORE: 3995 Bonus ------- Follower Combat Kills 35 Cogmind --------- Core Integrity 0/550 Matter 260/300 Energy 88/100 System Corruption 0% Temperature Cool (0) Movement Core (50) Location -8/Storage Parts ------- > --- POWER (1) -------- (None) > --- PROPULSION (2) --- (None) > --- UTILITY (4) ------ Visual Processing Unit Target Analyzer > --- WEAPON (4) ------- (None) > --- INVENTORY (5) ---- Improved Signal Interpreter Improved Terrain Scanner Peak State ------------ > --- POWER ------------ Light Deuterium Engine > --- PROPULSION ------- Armored Treads Advanced Treads > --- UTILITY ---------- Heat Sink Small Storage Unit Visual Processing Unit Hacking Suite > --- WEAPON ----------- Field Laser High-powered Shotgun High-powered Shotgun Assault Cannon > --- INVENTORY -------- Ion Engine Cooling System Improved Signal Interpreter Improved Terrain Scanner Target Analyzer Autogun Improved Light Cannon Improved Light Cannon [Rating: 29] Favorites ----------- Power Improved Ion Engine Engine Improved Ion Engine Power Core Light Nuclear Core Propulsion Aluminum Leg Treads Improved Treads Leg Aluminum Leg Wheel Compact Wheel Hover Unit Aerolev Unit Utility Small Storage Unit Device Heat Sink Storage Small Storage Unit Processor Visual Processing Unit Hackware Hacking Suite Protection Improved Light Armor Plating Weapon High-powered Shotgun Energy Gun Particle Gun Ballistic Gun High-powered Shotgun Ballistic Cannon Improved Light Cannon Build | -11 -10 -10 -9 -8 -8 ------- Run | Jun Mat Min Mat Mat Sto Slots Evolved 4 | . . . 2 2 . Power . | . . . . . . Propulsion . | . . . . . . Utility 2 | . . . 1 1 . Weapon 2 | . . . 1 1 . Parts Attached 58 | 7 4 1 15 13 18 Power 9 | 2 . . 3 2 2 Engine 8 | 2 . . 2 2 2 Core 1 | . . . 1 . . Reactor . | . . . . . . Propulsion 15 | 2 1 . 2 5 5 Treads 6 | . . . . 2 4 Leg 4 | . . . 2 2 . Wheel 4 | 2 1 . . 1 . Hover 1 | . . . . . 1 Flight . | . . . . . . Utility 14 | 1 . 1 5 3 4 Device 8 | . . . 5 2 1 Storage 1 | 1 . . . . . Processor 3 | . . 1 . 1 1 Hackware 1 | . . . . . 1 Protection 1 | . . . . . 1 Artifact . | . . . . . . Weapon 20 | 2 3 . 5 3 7 Energy Gun 8 | . 1 . 5 . 2 Energy Cannon . | . . . . . . Ballistic Gun 5 | 2 . . . 1 2 Ballistic Cannon 7 | . 2 . . 2 3 Launcher . | . . . . . . Special Weapon . | . . . . . . Impact Weapon . | . . . . . . Slashing Weapon . | . . . . . . Piercing Weapon . | . . . . . . Special Melee Weapon . | . . . . . . Unidentified Prototypes 1 | . . . . . 1 Parts Lost 20 | . . . 5 . 15 Power 3 | . . . 1 . 2 Propulsion 1 | . . . 1 . . Utility 6 | . . . 2 . 4 Weapon 10 | . . . 1 . 9 Highest Loss Streak 13 | . . . 4 . 13 To Critical Strikes 1 | . . . 1 . . Average Slot Usage (%) 92 | . 84 95 96 90 94 Engine 8 | . 14 14 3 9 8 Core 1 | . . . 6 . . Treads 5 | . . . . 4 17 Leg 5 | . . . 7 11 . Wheel 9 | . 27 28 13 1 . Device 10 | . . . 13 18 9 Storage 10 | . 14 14 11 9 8 Processor 7 | . . 10 6 7 9 Hackware 1 | . . . . . 6 Energy Gun 14 | . 10 . 20 18 12 Ballistic Gun 8 | . 15 . . 9 15 Ballistic Cannon 7 | . 1 28 11 1 5 Naked Turns . | . . . . . . Heaviest Build 28 | 12 18 18 22 27 28 Greatest Support 46 | 26 28 28 28 46 46 Greatest Overweight (x) 7 | . . . 1 7 3 Average Overweight (x) . | . . . . . . Largest Inventory Capacity 8 | 8 8 8 8 8 8 Average Capacity 7 | 6 8 8 8 8 7 Most Carried 8 | 6 8 8 8 8 8 Average Carried 7 | 3 6 7 7 7 7 Final Capacity 8 | 8 8 8 8 8 5 Final Carried 8 | 6 8 8 8 8 2 Class Distribution -------------------- 44% | Scavenger-Skirmisher 26% | Mutant 12% | Gunner 12% | Scavenger-Gunner 3% | Tank Dominant Class ---------------- Mutant | -10/Materials Mutant | -10/Mines Gunner | -9/Materials Scavenger-Skirmisher | -8/Materials Scavenger-Skirmisher | -8/Storage Resources | -11 -10 -10 -9 -8 -8 ----------- Run | Jun Mat Min Mat Mat Sto Matter Collected 1218 | 265 26 86 286 201 354 Remotely . | . . . . . . Salvage Created 1918 | . 187 27 635 333 736 Parts 88 | . 9 1 30 18 30 Haulers Intercepted . | . . . . . . Recyclers Shooed . | . . . . . . Parts Field Recycled . | . . . . . . Retrieved Matter . | . . . . . . Parts Self-Destructed . | . . . . . . Prevented . | . . . . . . Kills | -11 -10 -10 -9 -8 -8 ------- Run | Jun Mat Min Mat Mat Sto Combat Hostiles Destroyed 39 | . 4 2 14 4 15 Guns 27 | . 4 . 6 4 13 Cannons 12 | . . 2 8 . 2 Classes Destroyed 9 | . 1 . 4 2 2 Worker 1 | . . . . 1 . Recycler 3 | . . . 2 1 . Operator 1 | . . . 1 . . Watcher 2 | . . . . 1 1 Grunt 26 | . 4 2 11 2 7 Brawler 2 | . . . 1 . 1 Duelist 1 | . . . . . 1 Sentry 9 | . . . 2 2 5 Hunter 1 | . . . . . 1 Best Kill Streak 5 | . 2 2 5 2 5 Combat Bots Only 5 | . 2 2 3 2 5 Max Kills in Single Turn 2 | . 1 1 1 1 2 Gunslinging . | . . . . . . Exploded . | . . . . . . Melee . | . . . . . . Uniques/NPCs Destroyed . | . . . . . . Combat | -11 -10 -10 -9 -8 -8 -------- Run | Jun Mat Min Mat Mat Sto Damage Taken 3406 | . 189 175 540 141 2361 Core 774 | . 67 27 115 47 518 Absorbed by Shields . | . . . . . . Core Remaining (%) 77 | 100 . 62 71 . . Volleys Fired 101 | . 11 9 33 13 35 Largest 4 | . 2 2 3 3 4 Hottest 178 | . 60 78 160 146 178 Shots Fired 283 | . 22 18 90 39 114 Gun 223 | . 22 . 57 39 105 Cannon 60 | . . 18 33 . 9 Launcher . | . . . . . . Special . | . . . . . . Kinetic 148 | . 11 18 33 13 73 Thermal 124 | . . . 57 26 41 Explosive . | . . . . . . Electromagnetic 11 | . 11 . . . . Robot Hit Streak 16 | . 12 15 16 10 9 Robot Miss Streak 5 | . 1 1 3 3 5 Penetration Max . | . . . . . . Secondary Targets . | . . . . . . Shots Hit Robots 191 | . 20 14 60 27 70 Core Hits 98 | . 9 3 26 15 45 Critical Kills . | . . . . . . Critical Parts Destroyed . | . . . . . . Critical Strikes 12 | . . 1 6 2 3 Burn 9 | . . . 4 2 3 Blast 3 | . . 1 2 . . Melee Attacks . | . . . . . . Impact . | . . . . . . Slashing . | . . . . . . Piercing . | . . . . . . Sneak Attacks . | . . . . . . Combat Hostiles . | . . . . . . Follow-up Attacks . | . . . . . . Damage Inflicted 3461 | . 251 311 1019 482 1398 Guns 2525 | . 224 . 524 482 1295 Cannons 902 | . . 311 495 . 96 Explosions 27 | . 27 . . . . Melee . | . . . . . . Ramming 7 | . . . . . 7 Kinetic 2052 | . 73 311 495 255 918 Thermal 1251 | . 27 . 524 227 473 Explosive . | . . . . . . Electromagnetic 151 | . 151 . . . . Impact . | . . . . . . Slashing . | . . . . . . Piercing . | . . . . . . Highest Corruption 7 | . . . 7 . . Average Corruption 6 | . . . 6 . . Corruption Purged . | . . . . . . Corruption Blocked . | . . . . . . Effects 7 | . . . 7 . . Message Errors 2 | . . . 2 . . Matter Fused 3 | . . . 3 . . Energy Discharges 2 | . . . 2 . . Overload Shots . | . . . . . . Overflow Damage . | . . . . . . Projectiles . | . . . . . . Explosions . | . . . . . . Melee . | . . . . . . Knockbacks 4 | . . 3 1 . . Impact . | . . . . . . Kinetic 4 | . . 3 1 . . Secondary . | . . . . . . Self-Inflicted Damage 35 | . 33 . . . 2 Shots 1 | . 1 . . . . Rammed 2 | . . . . . 2 Targets Rammed 2 | . . . . . 2 Kicked . | . . . . . . Crushed . | . . . . . . Highest Temperature 362 | . 103 249 284 109 362 Average Temperature 118 | . 40 129 128 36 153 Received Heat Transfer 1437 | . 90 102 138 72 1035 Effects 3 | . . . . . 3 Energy Bleed 2 | . . . . . 2 Damage (minor) 1 | . . . . . 1 Siege Activations . | . . . . . . Robots Corrupted . | . . . . . . Combat Hostiles . | . . . . . . Parts Fried . | . . . . . . Impact Corruptions . | . . . . . . Robots Melted . | . . . . . . Combat Hostiles . | . . . . . . Parts Melted 4 | . . . 2 . 2 Heat Transferred 3685 | . 50 . 1630 703 1302 Parts Sabotaged . | . . . . . . Parts Stolen . | . . . . . . Parts Stripped . | . . . . . . Power Chain Reactions 1 | . 1 . . . . Missiles Intercepted . | . . . . . . Alert | -11 -10 -10 -9 -8 -8 ------- Run | Jun Mat Min Mat Mat Sto Peak Influence 341 | . 155 110 341 201 266 Initial 89 | . . 60 42 89 15 Average 112 | . 74 68 159 92 128 Maximum Alert Level 1 | . . . 1 1 1 Low Security (%) 83 | 100 100 100 61 99 74 Level 1 16 | . . . 38 . 25 Level 2 . | . . . . . . Level 3 . | . . . . . . Level 4 . | . . . . . . Level 5 . | . . . . . . High Security . | . . . . . . Max Security . | . . . . . . Squads Dispatched 7 | . 1 . 3 1 2 Investigation 2 | . . . 1 1 . Extermination . | . . . . . . Reinforcement 3 | . 1 . 2 . . Assault 2 | . . . . . 2 Garrison . | . . . . . . Intercept . | . . . . . . Searches Triggered . | . . . . . . Construction Impeded 1 | . . . 1 . . Haulers Reinforced . | . . . . . . Active Scanning Responses . | . . . . . . Cargo Convoy Interrupts . | . . . . . . Stealth | -11 -10 -10 -9 -8 -8 --------- Run | Jun Mat Min Mat Mat Sto Distress Signals 3 | . . . . . 3 Communications Jammed . | . . . . . . Distress Signals . | . . . . . . Times Spotted 62 | . 7 2 16 6 31 Peak Tracking Total 11 | . 2 2 4 2 11 Tactical Retreats 1 | . . . . . 1 Traps | -11 -10 -10 -9 -8 -8 ------- Run | Jun Mat Min Mat Mat Sto Traps Triggered 2 | . . . 1 1 . Indirectly . | . . . . . . Trap Hack Attempts . | . . . . . . Triggered . | . . . . . . Disarmed . | . . . . . . Reprogrammed . | . . . . . . Reused . | . . . . . . Traps Extracted . | . . . . . . Installed . | . . . . . . Triggered . | . . . . . . Machines | -11 -10 -10 -9 -8 -8 ---------- Run | Jun Mat Min Mat Mat Sto Machines Disabled 1 | . . . . . 1 Max in Single Turn 1 | . . . . . 1 Machines Repaired . | . . . . . . Machines Sabotaged . | . . . . . . Overloaded Fab Kills . | . . . . . . Hacking | -11 -10 -10 -9 -8 -8 --------- Run | Jun Mat Min Mat Mat Sto Machines Accessed 13 | . 3 . 4 1 5 Terminals 12 | . 3 . 3 1 5 Fabricators . | . . . . . . Repair Stations . | . . . . . . Recycling Units 1 | . . . 1 . . Scanalyzers . | . . . . . . Garrison Access . | . . . . . . Total Hacks 27 | . 7 . 8 3 9 Successful 16 | . 4 . 4 1 7 Failed 11 | . 3 . 4 2 2 Catastrophic . | . . . . . . Database Lockouts . | . . . . . . Manual 18 | . 5 . 6 1 6 Terminals 26 | . 7 . 7 3 9 Fabricators . | . . . . . . Repair Stations . | . . . . . . Recycling Units 1 | . . . 1 . . Scanalyzers . | . . . . . . Garrison Access . | . . . . . . Terminal Hacks 9 | . 2 . 2 . 5 Record 1 | . . . 1 . . Open Door 2 | . . . . . 2 Branch Access Points 2 | . 1 . . . 1 Unreport Threat 2 | . 1 . . . 1 Recall Reinforcements 1 | . . . 1 . . Hauler Manifests 1 | . . . . . 1 Fabricator Hacks . | . . . . . . Repair Station Hacks . | . . . . . . Recycling Unit Hacks . | . . . . . . Scanalyzer . | . . . . . . Garrison Access Hacks . | . . . . . . Unauthorized Hacks 7 | . 2 . 2 1 2 Terminals 7 | . 2 . 2 1 2 Track 1 | . . . . . 1 Botnet 6 | . 2 . 2 1 1 Fabricators . | . . . . . . Repair Stations . | . . . . . . Recycling Units . | . . . . . . Scanalyzers . | . . . . . . Garrison Access . | . . . . . . Data Cores Recovered . | . . . . . . Used . | . . . . . . Hacking Detections 11 | . 3 . 3 1 4 Full Trace Events . | . . . . . . Feedback Events . | . . . . . . Feedback Blocked . | . . . . . . Robot Schematics Acquired . | . . . . . . Robots Built . | . . . . . . Authchips . | . . . . . . Time . | . . . . . . Total Robot Build Rating . | . . . . . . Part Schematics Acquired . | . . . . . . Parts Built . | . . . . . . Authchips . | . . . . . . Time . | . . . . . . Total Part Build Rating . | . . . . . . Parts Repaired . | . . . . . . Time . | . . . . . . Parts Recycled . | . . . . . . Recycled Matter . | . . . . . . Retrieved Matter . | . . . . . . Retrieved Components . | . . . . . . Parts Scanalyzed . | . . . . . . Part Schematics Acquired . | . . . . . . Parts Damaged . | . . . . . . Bothacking | -11 -10 -10 -9 -8 -8 ------------ Run | Jun Mat Min Mat Mat Sto Used RIF Installer . | . . . . . . Robots Hacked . | . . . . . . Non-combat . | . . . . . . Combat . | . . . . . . Robot Hacks Applied . | . . . . . . Relay Couplers Released . | . . . . . . Fabnet Peak Effective % . | . . . . . . Robots Rewired . | . . . . . . Allies Hacked . | . . . . . . Hacks Repelled . | . . . . . . Allies | -11 -10 -10 -9 -8 -8 -------- Run | Jun Mat Min Mat Mat Sto Total Allies 2 | . . . . . 2 Largest Group 2 | . . . . . 2 Highest-Rated Group 62 | . . . . . 62 Highest-Rated Ally 31 | . . . . . 31 Total Orders . | . . . . . . Ally Attacks 14 | . . . . . 14 Total Damage 209 | . . . . . 209 Kills 1 | . . . . . 1 Allies Corrupted . | . . . . . . Allies Melted . | . . . . . . Intel | -11 -10 -10 -9 -8 -8 ------- Run | Jun Mat Min Mat Mat Sto Robot Analysis Total . | . . . . . . Derelict Logs Recovered . | . . . . . . Drone Launches . | . . . . . . Drone Recoveries . | . . . . . . Exploration | -11 -10 -10 -9 -8 -8 ------------- Run | Jun Mat Min Mat Mat Sto Turns Passed 2314 | 69 274 180 577 583 631 Spaces Moved 1312 | 61 207 146 288 352 258 Core 4 | 3 . . . 1 . Treads 335 | . . . . 79 256 Legs 309 | . . . 103 206 . Wheels 662 | 58 207 146 185 66 . Hover 2 | . . . . . 2 Flight . | . . . . . . Fastest Speed 50 | 50 90 95 95 105 152 Average Speed 122 | 88 90 95 113 136 165 Slowest Speed 400 | 100 100 95 190 400 250 Overloaded Moves . | . . . . . . Propulsion Burnouts . | . . . . . . Robots Hopped . | . . . . . . Cave-ins Triggered . | . . . . . . Exploration Rate (%) 31 | 5 41 44 27 26 44 Regions Visited 5 Branch Regions 2 Pre-discovered Areas . | . . . . . . Known Exits Taken 1 | . 1 . . . . Unknown Exits Taken 4 | 1 . 1 1 1 . Scrap Searched 2 | . . 2 . . . Spaces Dug . | . . . . . . Terrain Destroyed 6 | . 3 . 1 . 2 Melee . | . . . . . . Projectile 3 | . . . 1 . 2 AOE 3 | . 3 . . . . Terrain Rammed . | . . . . . . Walls Destroyed . | . . . . . . Machines Disabled . | . . . . . . Actions | -11 -10 -10 -9 -8 -8 --------- Run | Jun Mat Min Mat Mat Sto Total 1786 | 72 274 169 465 424 382 Wait 268 | . 46 10 118 33 61 Move 1307 | 60 206 145 287 351 258 Hop . | . . . . . . Pick Up 21 | 5 3 2 7 4 . Fast Attach 26 | 6 3 1 4 6 6 Attach 13 | . . . 5 2 6 Detach 2 | . . . . 1 1 Swap 19 | 1 1 . 6 5 6 Drop 27 | . 4 2 5 9 7 Fire 101 | . 11 9 33 13 35 Melee . | . . . . . . Ram 1 | . . . . . 1 Kick . | . . . . . . Crush 1 | . . . . . 1 Escape Stasis . | . . . . . . Rewire . | . . . . . . Trap . | . . . . . . Miscellaneous . | . . . . . . Route ------- -11/Junkyard -10/Materials -10/Mines -9/Materials -8/Materials -8/Storage (discovered 1 exit: Rec) History --------- Turn | Location | Event 10 | -11/Junkyard | Discovered new exit (range 15) 70 | -11/Junkyard | Entered Materials 151 | -10/Materials | Identified exit to Mines 306 | -10/Materials | Build established: Mutant 344 | -10/Materials | Entered Mines 463 | -10/Mines | Discovered new exit (range 12) 524 | -10/Mines | Entered Materials 524 | -9/Materials | Evolved 2 slots: Utility x1, Weapon x1 918 | -9/Materials | Lost 4 parts (1p1n1u1w) 989 | -9/Materials | Discovered new exit (range 4) 1101 | -9/Materials | Entered another Materials area 1101 | -8/Materials | Evolved 2 slots: Utility x1, Weapon x1 1353 | -8/Materials | Discovered new exit (range 10) 1451 | -8/Materials | Build established: Scavenger-Skirmisher 1684 | -8/Materials | Entered Storage 2073 | -8/Storage | Identified exit to Recycling 2128 | -8/Storage | Met a pair of Derelict thieves 2304 | -8/Storage | Core integrity fell below 50% 2311 | -8/Storage | Core integrity fell below 20% 2315 | -8/Storage | Destroyed by L-31 Rogue with Katana Last Messages --------------- 02285_ Hpw. Shotgun destroyed. 02286_ Door Terminal disabled. 02286_ U-05 Engineer builds a Door. 02289_ Overheating: Sml. Storage Unit damaged (-7). 02289_ Field Laser destroyed. 02290_ Sml. Storage Unit destroyed. 02291_ U-05 Engineer builds a Door. 02293_ Critical hit (Burn: +37). 02294_ Overheating: Energy bleed (-4). 02294_ Critical hit (Burn: +37). 02295_ Arm. Treads severed. 02298_ Ion Engine destroyed. 02299_ Imp. Light Cannon destroyed. 02300_ Autogun destroyed. 02300_ Slammed into L-31 Rogue. 02305_ Cooling System destroyed. 02308_ Critical hit (Burn: +37). 02310_ G-47 Trooper suffers critical hit (Burn). 02312_ G-47 Trooper destroyed. 02314_ Critical hit (Burn: +37). Map ----- +----------------------------------------------------+ | | | | | | | | | | | | | | | | | | | | | | | | | | | | | | | | | | | ?????????????????????????????????????? | | ?????????????????????????????????????? | | ?????????????????????????????????????? | | ?????????????????????????????????????? | | ?????????????????????????????????????? | | ?????????????????????????????????????? | | ??????????????##???????###???????????? | | ???????????#### ####+###=#"??????????? | | ???????????# %+!!*==l@"?>????????? | | ???????????# """!#%!%gg!="??????????? | | ???????????# """ #%/#####"??????????? | | ???????????# """ # !#???????????????? | | ???????? #% + +???????????????? | | ??????? # """ # #???????????????? | | ??????? # """ # #???????????????? | | ??????? ^ # """ # #???????????????? | | ??????? # # #???????????????? | | ???????# # """ # #???????????????? | | ???????# # """ # #???????????????? | | ???????# # """ # #???????????????? | | ???????# # # #???????????????? | | ???????# ###/#### #???????????????? | | ???????# #?# #??# #???????????????? | | ???????# #?# #??# #???????????????? | | ???????# #?# #??# ##??????????????? | | ???????# ### ### ####+#?????????? | | ???????# ?????? | | ???????# ?????? | | ???????# #### #######????????? | | ???????# #????+###??????????????? | | ???????# +??????????????????????? | | ???????#^^^####??????????????????????? | | ????#### ^#?????????????????????????? | +----------------------------------------------------+ Best States ------------- Heat Dissipation 53 Energy Generation 14 Energy Capacity 265 Matter Stores 300 Matter Capacity 300 Sight Range 18 Robot Scan Range 14 Terrain Scan Range 16 Terrain Scan Density 10 Armor Coverage 150 Evasion (%) 55 Targeting Accuracy 5 Target Analysis 5 Recoil Reduction 2 Offensive Hacking 10 Item Schematics ----------------- None Robot Schematics ------------------ None Fabricated ------------ Nothing Alien Tech Used ----------------- None Achievements -------------- None Challenges ------------ None Game ------ Seed LongswordFusionMeganuke Manual? 0 Play Time 00:51:01 Cumulative 36.6 hours Start 2024.01.13 @ 18:59:00 End 2024.01.13 @ 20:27:32 Sessions 1 Manual Loads 0 Difficulty Rogue Special Mode None Game No. 93 Rogue 93 Adventurer 0 Explorer 0 Win Type - Total 0 Types 0/0/0/0/0/0/0/0/0 Lore% 20 Gallery% 29 Achievement% 20 Wizard Run 0 Options --------- ASCII 0 Keyboard 1 Movement Numpad Keybinds 0 Fullscreen 1 Font 16/Terminus Map View 76x50 Tactical HUD 1 Map Filters NONE Filters NONE Steam 1 RUN: 14a24809-22e7-4228-bb31-9ba8391dd6ad